[Event "Titled Tuesday Blitz February 15 Late 2022"]
[White "Martirosyan, Haik M."]
[Black "Fedoseev, Vladimir"]
[WhiteFideId "13306553"]
[BlackFideId "24130737"]
[WhiteElo "2735"]
[BlackElo "2726"]
[Result "1-0"]
[Round "11"]
[TimeControl "180+1"]
[Date "2022.02.15"]
[WhiteClock "0:00:14"]
[BlackClock "0:00:01"]

1. d4 {[%clk 0:03:00]}  Nf6 {[%clk 0:02:51]} 2. c4 {[%clk 0:03:01]}  e6 {[%clk 0:02:51]} 3. Nf3 {[%clk 0:03:01]}  a6 {[%clk 0:02:48]} 4. Nc3 {[%clk 0:02:59]}  Bb4 {[%clk 0:02:48]} 5. Bg5 {[%clk 0:02:55]}  h6 {[%clk 0:02:45]} 6. Bh4 {[%clk 0:02:55]}  b5 {[%clk 0:02:38]} 7. e3 {[%clk 0:02:49]}  c5 {[%clk 0:01:57]} 8. cxb5 {[%clk 0:02:35]}  axb5 {[%clk 0:01:53]} 9. Bxf6 {[%clk 0:02:34]}  Qxf6 {[%clk 0:01:42]} 10. Bxb5 {[%clk 0:02:33]}  cxd4 {[%clk 0:01:42]} 11. Qxd4 {[%clk 0:02:28]}  Qxd4 {[%clk 0:01:39]} 12. Nxd4 {[%clk 0:02:27]}  Ba6 {[%clk 0:01:16]} 13. Ke2 {[%clk 0:02:23]}  Bxc3 {[%clk 0:00:54]} 14. bxc3 {[%clk 0:02:22]}  Ke7 {[%clk 0:00:55]} 15. a4 {[%clk 0:02:13]}  Rc8 {[%clk 0:00:55]} 16. Kd2 {[%clk 0:02:13]}  g6 {[%clk 0:00:47]} 17. Rhb1 {[%clk 0:02:09]}  e5 {[%clk 0:00:46]} 18. Nb3 {[%clk 0:01:59]}  Bb7 {[%clk 0:00:42]} 19. f3 {[%clk 0:01:57]}  Bd5 {[%clk 0:00:37]} 20. e4 {[%clk 0:01:55]}  Be6 {[%clk 0:00:36]} 21. a5 {[%clk 0:01:47]}  Na6 {[%clk 0:00:36]} 22. Be2 {[%clk 0:01:37]}  d5 {[%clk 0:00:33]} 23. exd5 {[%clk 0:01:36]}  Bxd5 {[%clk 0:00:33]} 24. Nc1 {[%clk 0:01:34]}  Nc5 {[%clk 0:00:32]} 25. Rb6 {[%clk 0:01:24]}  e4 {[%clk 0:00:30]} 26. a6 {[%clk 0:01:22]}  Rc7 {[%clk 0:00:24]} 27. Ra5 {[%clk 0:01:17]}  Rd8 {[%clk 0:00:23]} 28. Kc2 {[%clk 0:01:08]}  exf3 {[%clk 0:00:18]} 29. gxf3 {[%clk 0:01:08]}  Be6 {[%clk 0:00:18]} 30. c4 {[%clk 0:01:03]}  Rdc8 {[%clk 0:00:13]} 31. Nb3 {[%clk 0:00:59]}  Nd7 {[%clk 0:00:10]} 32. Rb4 {[%clk 0:00:57]}  Nb8 {[%clk 0:00:08]} 33. Nd4 {[%clk 0:00:51]}  Nd7 {[%clk 0:00:08]} 34. Kc3 {[%clk 0:00:42]}  Ra8 {[%clk 0:00:07]} 35. f4 {[%clk 0:00:41]}  Nc5 {[%clk 0:00:07]} 36. a7 {[%clk 0:00:35]}  Bd7 {[%clk 0:00:05]} 37. Nb5 {[%clk 0:00:31]}  Bxb5 {[%clk 0:00:05]} 38. Rbxb5 {[%clk 0:00:32]}  Nd7 {[%clk 0:00:04]} 39. c5 {[%clk 0:00:28]}  Raxa7 {[%clk 0:00:04]} 40. Rxa7 {[%clk 0:00:28]}  Rxa7 {[%clk 0:00:05]} 41. c6 {[%clk 0:00:22]}  Rc7 {[%clk 0:00:05]} 42. Bf3 {[%clk 0:00:21]}  Nf8 {[%clk 0:00:04]} 43. f5 {[%clk 0:00:15]}  gxf5 {[%clk 0:00:03]} 44. Rxf5 {[%clk 0:00:16]}  Ne6 {[%clk 0:00:03]} 45. Kc4 {[%clk 0:00:17]}  Nd8 {[%clk 0:00:01]} 46. Kc5 {[%clk 0:00:14]} 1-0


[Site "https://www.chess.com"]

[Event "Titled Tuesday Blitz February 15 Late 2022"]
[White "Mekhitarian, Krikor Sevag"]
[Black "Hambleton, Aman"]
[WhiteFideId "2107660"]
[BlackFideId "2606577"]
[WhiteElo "2598"]
[BlackElo "2552"]
[Result "1-0"]
[Round "11"]
[TimeControl "180+1"]
[Date "2022.02.15"]
[WhiteClock "0:01:48"]
[BlackClock "0:00:01"]

1. e4 {[%clk 0:03:00]}  c5 {[%clk 0:02:49]} 2. Nf3 {[%clk 0:03:00]}  e6 {[%clk 0:02:48]} 3. d4 {[%clk 0:03:00]}  cxd4 {[%clk 0:02:49]} 4. Nxd4 {[%clk 0:03:01]}  Nc6 {[%clk 0:02:48]} 5. Nc3 {[%clk 0:02:59]}  Qc7 {[%clk 0:02:48]} 6. g3 {[%clk 0:02:47]}  a6 {[%clk 0:02:46]} 7. Bg2 {[%clk 0:02:47]}  Nf6 {[%clk 0:02:45]} 8. O-O {[%clk 0:02:46]}  Nxd4 {[%clk 0:02:42]} 9. Qxd4 {[%clk 0:02:47]}  Bc5 {[%clk 0:02:42]} 10. Bf4 {[%clk 0:02:47]}  d6 {[%clk 0:02:42]} 11. Qd3 {[%clk 0:02:46]}  h6 {[%clk 0:02:00]} 12. Na4 {[%clk 0:02:45]}  e5 {[%clk 0:01:58]} 13. Nxc5 {[%clk 0:02:40]}  exf4 {[%clk 0:01:57]} 14. Nb3 {[%clk 0:02:39]}  fxg3 {[%clk 0:01:56]} 15. hxg3 {[%clk 0:02:40]}  O-O {[%clk 0:01:55]} 16. Rad1 {[%clk 0:02:39]}  Be6 {[%clk 0:01:52]} 17. Rfe1 {[%clk 0:02:35]}  Rfd8 {[%clk 0:01:49]} 18. Nd4 {[%clk 0:02:32]}  Bg4 {[%clk 0:01:39]} 19. Bf3 {[%clk 0:02:23]}  Bh3 {[%clk 0:01:22]} 20. c4 {[%clk 0:02:15]}  Rac8 {[%clk 0:01:21]} 21. b3 {[%clk 0:02:14]}  Nd7 {[%clk 0:01:12]} 22. Bg2 {[%clk 0:02:14]}  Nc5 {[%clk 0:01:05]} 23. Qd2 {[%clk 0:02:09]}  Bd7 {[%clk 0:00:50]} 24. Kh2 {[%clk 0:02:05]}  Re8 {[%clk 0:00:42]} 25. Nc2 {[%clk 0:01:59]}  Bc6 {[%clk 0:00:39]} 26. f3 {[%clk 0:01:59]}  Rcd8 {[%clk 0:00:37]} 27. Ne3 {[%clk 0:02:00]}  b5 {[%clk 0:00:31]} 28. cxb5 {[%clk 0:01:56]}  axb5 {[%clk 0:00:28]} 29. Nf5 {[%clk 0:01:53]}  Nb7 {[%clk 0:00:10]} 30. Qc3 {[%clk 0:01:49]}  f6 {[%clk 0:00:04]} 31. Rc1 {[%clk 0:01:49]}  Rc8 {[%clk 0:00:03]} 32. Nd4 {[%clk 0:01:49]}  Nc5 {[%clk 0:00:01]} 33. b4 {[%clk 0:01:48]}  Na4 {[%clk 0:00:01]} 34. Qb3+ {[%clk 0:01:48]} 1-0


[Site "https://www.chess.com"]

[Event "Titled Tuesday Blitz February 15 Late 2022"]
[White "Mikhailov, Viacheslav"]
[Black "Zhurbinsky, David"]
[WhiteFideId "4187369"]
[BlackFideId "2072904"]
[WhiteElo "2381"]
[BlackElo "2531"]
[Result "1-0"]
[Round "11"]
[TimeControl "180+1"]
[Date "2022.02.15"]
[WhiteClock "0:01:18"]
[BlackClock "0:00:36"]

1. Nf3 {[%clk 0:02:59]}  Nf6 {[%clk 0:02:59]} 2. g3 {[%clk 0:02:59]}  d5 {[%clk 0:02:59]} 3. Bg2 {[%clk 0:03:00]}  c5 {[%clk 0:02:59]} 4. O-O {[%clk 0:03:00]}  Nc6 {[%clk 0:03:00]} 5. d4 {[%clk 0:03:01]}  e6 {[%clk 0:02:59]} 6. c4 {[%clk 0:03:01]}  Be7 {[%clk 0:02:59]} 7. cxd5 {[%clk 0:03:01]}  exd5 {[%clk 0:02:58]} 8. Nc3 {[%clk 0:03:01]}  O-O {[%clk 0:02:58]} 9. Bf4 {[%clk 0:03:01]}  a6 {[%clk 0:02:56]} 10. dxc5 {[%clk 0:02:57]}  Bxc5 {[%clk 0:02:57]} 11. Rc1 {[%clk 0:02:58]}  Re8 {[%clk 0:02:41]} 12. Bg5 {[%clk 0:02:57]}  d4 {[%clk 0:02:29]} 13. Bxf6 {[%clk 0:02:41]}  Qxf6 {[%clk 0:02:30]} 14. Nd5 {[%clk 0:02:34]}  Qd6 {[%clk 0:02:29]} 15. Ng5 {[%clk 0:02:32]}  Bg4 {[%clk 0:02:20]} 16. Ne4 {[%clk 0:02:28]}  Rxe4 {[%clk 0:02:08]} 17. Bxe4 {[%clk 0:02:29]}  Re8 {[%clk 0:02:09]} 18. Qc2 {[%clk 0:02:18]}  Ba7 {[%clk 0:02:09]} 19. Nf4 {[%clk 0:02:12]}  Nb4 {[%clk 0:01:51]} 20. Qc7 {[%clk 0:01:32]}  Qxc7 {[%clk 0:01:03]} 21. Rxc7 {[%clk 0:01:33]}  Rxe4 {[%clk 0:00:48]} 22. Rxb7 {[%clk 0:01:33]}  Nc6 {[%clk 0:00:45]} 23. f3 {[%clk 0:01:29]}  Bc8 {[%clk 0:00:36]} 24. Rxa7 {[%clk 0:01:21]}  Rxf4 {[%clk 0:00:36]} 25. Rc7 {[%clk 0:01:18]} 1-0


[Site "https://www.chess.com"]

[Event "Titled Tuesday Blitz February 15 Late 2022"]
[White "Mikhailovsky, Vladimir"]
[Black "Stoleriu, George"]
[WhiteFideId "34105414"]
[BlackFideId "1227505"]
[WhiteElo "2371"]
[BlackElo "2203"]
[Result "0-1"]
[Round "11"]
[TimeControl "180+1"]
[Date "2022.02.15"]
[WhiteClock "0:00:46"]
[BlackClock "0:00:19"]

1. d4 {[%clk 0:03:00]}  e6 {[%clk 0:02:56]} 2. e4 {[%clk 0:02:56]}  d5 {[%clk 0:02:56]} 3. Nc3 {[%clk 0:02:54]}  Bb4 {[%clk 0:02:55]} 4. exd5 {[%clk 0:02:52]}  exd5 {[%clk 0:02:56]} 5. Bd3 {[%clk 0:02:52]}  Nc6 {[%clk 0:02:56]} 6. Ne2 {[%clk 0:02:52]}  Bg4 {[%clk 0:02:56]} 7. f3 {[%clk 0:02:52]}  Bh5 {[%clk 0:02:56]} 8. Bf4 {[%clk 0:02:50]}  Nge7 {[%clk 0:02:53]} 9. Qd2 {[%clk 0:02:49]}  Qd7 {[%clk 0:02:49]} 10. O-O-O {[%clk 0:02:47]}  O-O-O {[%clk 0:02:49]} 11. h4 {[%clk 0:02:40]}  Bg6 {[%clk 0:02:49]} 12. h5 {[%clk 0:02:40]}  Bxd3 {[%clk 0:02:49]} 13. Qxd3 {[%clk 0:02:41]}  f6 {[%clk 0:02:48]} 14. g4 {[%clk 0:02:39]}  g5 {[%clk 0:02:13]} 15. hxg6 {[%clk 0:02:27]}  hxg6 {[%clk 0:02:14]} 16. g5 {[%clk 0:02:24]}  f5 {[%clk 0:02:08]} 17. Be5 {[%clk 0:02:17]}  Nxe5 {[%clk 0:01:21]} 18. dxe5 {[%clk 0:02:16]}  c6 {[%clk 0:01:21]} 19. Nf4 {[%clk 0:02:04]}  Ba5 {[%clk 0:01:08]} 20. Nce2 {[%clk 0:01:56]}  Bc7 {[%clk 0:00:58]} 21. e6 {[%clk 0:01:51]}  Qd6 {[%clk 0:00:45]} 22. Rxh8 {[%clk 0:01:50]}  Rxh8 {[%clk 0:00:45]} 23. Qd4 {[%clk 0:01:51]}  Qe5 {[%clk 0:00:36]} 24. Qxa7 {[%clk 0:01:28]}  Rh2 {[%clk 0:00:37]} 25. Rd2 {[%clk 0:00:57]}  Rh1+ {[%clk 0:00:18]} 26. Rd1 {[%clk 0:00:57]}  Qxf4+ {[%clk 0:00:18]} 27. Nxf4 {[%clk 0:00:47]}  Bxf4+ {[%clk 0:00:19]} 28. Kb1 {[%clk 0:00:46]}  Rxd1# {[%clk 0:00:19]} 0-1


[Site "https://www.chess.com"]

[Event "Titled Tuesday Blitz February 15 Late 2022"]
[White "Mikhalsky, Vladimir"]
[Black "Titichoca Daza, Daniel"]
[WhiteFideId "14144352"]
[BlackFideId "3309550"]
[WhiteElo "2248"]
[BlackElo "1968"]
[Result "1-0"]
[Round "11"]
[TimeControl "180+1"]
[Date "2022.02.16"]
[WhiteClock "0:00:33"]
[BlackClock "0:00:01"]

1. c4 {[%clk 0:02:59]}  b6 {[%clk 0:02:55]} 2. d4 {[%clk 0:02:58]}  Bb7 {[%clk 0:02:56]} 3. Nc3 {[%clk 0:02:57]}  Nf6 {[%clk 0:02:55]} 4. f3 {[%clk 0:02:54]}  c5 {[%clk 0:02:29]} 5. d5 {[%clk 0:02:52]}  e6 {[%clk 0:02:29]} 6. e4 {[%clk 0:02:52]}  exd5 {[%clk 0:02:23]} 7. cxd5 {[%clk 0:02:51]}  d6 {[%clk 0:02:22]} 8. a4 {[%clk 0:02:48]}  Be7 {[%clk 0:02:12]} 9. a5 {[%clk 0:02:47]}  O-O {[%clk 0:02:12]} 10. a6 {[%clk 0:02:38]}  Bc8 {[%clk 0:02:11]} 11. Bb5 {[%clk 0:02:35]}  Ne8 {[%clk 0:02:05]} 12. Nge2 {[%clk 0:02:21]}  Nc7 {[%clk 0:02:02]} 13. Qd3 {[%clk 0:02:20]}  Nxb5 {[%clk 0:01:50]} 14. Qxb5 {[%clk 0:02:19]}  Bf6 {[%clk 0:01:30]} 15. Bf4 {[%clk 0:02:14]}  Be7 {[%clk 0:01:09]} 16. O-O {[%clk 0:02:13]}  Bd7 {[%clk 0:01:10]} 17. Qc4 {[%clk 0:02:12]}  b5 {[%clk 0:00:48]} 18. Nxb5 {[%clk 0:02:07]}  Qb6 {[%clk 0:00:49]} 19. Nec3 {[%clk 0:01:58]}  Nxa6 {[%clk 0:00:48]} 20. Nxd6 {[%clk 0:01:56]}  Nb4 {[%clk 0:00:39]} 21. Nf5 {[%clk 0:01:33]}  Bf6 {[%clk 0:00:38]} 22. Bd6 {[%clk 0:01:24]}  Rfc8 {[%clk 0:00:27]} 23. Ne7+ {[%clk 0:01:22]}  Bxe7 {[%clk 0:00:22]} 24. Bxe7 {[%clk 0:01:22]}  a6 {[%clk 0:00:20]} 25. Na4 {[%clk 0:01:19]}  Qb5 {[%clk 0:00:10]} 26. Rfc1 {[%clk 0:01:11]}  Nd3 {[%clk 0:00:04]} 27. Rc3 {[%clk 0:00:56]}  Qxc4 {[%clk 0:00:04]} 28. Rxc4 {[%clk 0:00:54]}  Rab8 {[%clk 0:00:04]} 29. Nxc5 {[%clk 0:00:51]}  Bb5 {[%clk 0:00:04]} 30. Rc2 {[%clk 0:00:37]}  Nb4 {[%clk 0:00:03]} 31. Rcc1 {[%clk 0:00:36]}  Nd3 {[%clk 0:00:01]} 32. Nxd3 {[%clk 0:00:35]}  Bxd3 {[%clk 0:00:01]} 33. Ba3 {[%clk 0:00:33]} 1-0


[Site "https://www.chess.com"]

[Event "Titled Tuesday Blitz February 15 Late 2022"]
[White "Papasimakopoulos, Alexandros"]
[Black "Tari, Aryan"]
[WhiteFideId "4244125"]
[BlackFideId "1510045"]
[WhiteElo "2340"]
[BlackElo "2567"]
[Result "0-1"]
[Round "11"]
[TimeControl "180+1"]
[Date "2022.02.15"]
[WhiteClock "0:00:01"]
[BlackClock "0:00:03"]

1. d4 {[%clk 0:02:56]}  d5 {[%clk 0:02:59]} 2. c4 {[%clk 0:02:55]}  e6 {[%clk 0:03:00]} 3. Nc3 {[%clk 0:02:55]}  c5 {[%clk 0:03:00]} 4. cxd5 {[%clk 0:02:55]}  cxd4 {[%clk 0:03:01]} 5. Qa4+ {[%clk 0:02:55]}  Bd7 {[%clk 0:03:01]} 6. Qxd4 {[%clk 0:02:55]}  exd5 {[%clk 0:03:02]} 7. Qxd5 {[%clk 0:02:56]}  Nf6 {[%clk 0:03:02]} 8. Qb3 {[%clk 0:02:54]}  Na6 {[%clk 0:03:02]} 9. e3 {[%clk 0:02:45]}  Nc5 {[%clk 0:03:02]} 10. Qc2 {[%clk 0:02:41]}  Rc8 {[%clk 0:03:02]} 11. Nf3 {[%clk 0:02:36]}  Bd6 {[%clk 0:03:02]} 12. Be2 {[%clk 0:02:34]}  O-O {[%clk 0:03:02]} 13. O-O {[%clk 0:02:32]}  Qe7 {[%clk 0:03:02]} 14. Bd2 {[%clk 0:02:30]}  a6 {[%clk 0:02:59]} 15. Rfd1 {[%clk 0:02:29]}  b5 {[%clk 0:02:59]} 16. a3 {[%clk 0:02:00]}  g6 {[%clk 0:02:59]} 17. Be1 {[%clk 0:02:00]}  Bf5 {[%clk 0:02:59]} 18. Qd2 {[%clk 0:01:56]}  Rfd8 {[%clk 0:02:58]} 19. Nd4 {[%clk 0:01:55]}  Nfe4 {[%clk 0:02:38]} 20. Nxe4 {[%clk 0:01:33]}  Bxe4 {[%clk 0:02:39]} 21. Rac1 {[%clk 0:01:31]}  Bb7 {[%clk 0:02:09]} 22. b4 {[%clk 0:01:20]}  Ne4 {[%clk 0:01:59]} 23. Qb2 {[%clk 0:01:19]}  Be5 {[%clk 0:01:55]} 24. Rxc8 {[%clk 0:01:19]}  Rxc8 {[%clk 0:01:55]} 25. Rc1 {[%clk 0:01:19]}  Rd8 {[%clk 0:01:45]} 26. Bf3 {[%clk 0:01:19]}  Qf6 {[%clk 0:01:38]} 27. Rd1 {[%clk 0:01:16]}  Qh4 {[%clk 0:01:22]} 28. h3 {[%clk 0:01:08]}  Bd5 {[%clk 0:01:10]} 29. Qc2 {[%clk 0:01:05]}  Re8 {[%clk 0:00:44]} 30. Nxb5 {[%clk 0:00:51]}  axb5 {[%clk 0:00:45]} 31. Rxd5 {[%clk 0:00:51]}  Ng5 {[%clk 0:00:46]} 32. Qd1 {[%clk 0:00:43]}  Nxf3+ {[%clk 0:00:37]} 33. Qxf3 {[%clk 0:00:43]}  Qc4 {[%clk 0:00:38]} 34. Qd1 {[%clk 0:00:40]}  Bb2 {[%clk 0:00:35]} 35. Rc5 {[%clk 0:00:32]}  Qa2 {[%clk 0:00:27]} 36. Bc3 {[%clk 0:00:19]}  Qxa3 {[%clk 0:00:21]} 37. Bxb2 {[%clk 0:00:19]}  Qxb2 {[%clk 0:00:22]} 38. Rxb5 {[%clk 0:00:19]}  Ra8 {[%clk 0:00:22]} 39. Qf3 {[%clk 0:00:18]}  Ra6 {[%clk 0:00:15]} 40. Qe4 {[%clk 0:00:06]}  Rf6 {[%clk 0:00:12]} 41. Qe5 {[%clk 0:00:03]}  Qxf2+ {[%clk 0:00:11]} 42. Kh2 {[%clk 0:00:04]}  h5 {[%clk 0:00:06]} 43. Rb8+ {[%clk 0:00:04]}  Kh7 {[%clk 0:00:04]} 44. Rb7 {[%clk 0:00:04]}  h4 {[%clk 0:00:03]} 45. Rc7 {[%clk 0:00:04]}  Rf5 {[%clk 0:00:03]} 46. Qd6 {[%clk 0:00:01]}  Rg5 {[%clk 0:00:03]} 0-1


[Site "https://www.chess.com"]

[Event "Titled Tuesday Blitz February 15 Late 2022"]
[White "Petrovic, Aleksa"]
[Black "Cori T., Deysi"]
[WhiteFideId "967629"]
[BlackFideId "3801934"]
[WhiteElo "2139"]
[BlackElo "2350"]
[Result "1-0"]
[Round "11"]
[TimeControl "180+1"]
[Date "2022.02.16"]
[WhiteClock "0:00:09"]
[BlackClock "0:01:35"]

1. e4 {[%clk 0:03:00]}  e6 {[%clk 0:02:59]} 2. d4 {[%clk 0:03:00]}  d5 {[%clk 0:03:00]} 3. Nc3 {[%clk 0:03:00]}  Be7 {[%clk 0:03:00]} 4. Nf3 {[%clk 0:02:59]}  Nf6 {[%clk 0:02:59]} 5. Bd3 {[%clk 0:02:59]}  a6 {[%clk 0:02:59]} 6. e5 {[%clk 0:02:53]}  Nfd7 {[%clk 0:02:56]} 7. Ne2 {[%clk 0:02:53]}  c5 {[%clk 0:02:55]} 8. c3 {[%clk 0:02:54]}  Nc6 {[%clk 0:02:56]} 9. O-O {[%clk 0:02:54]}  g5 {[%clk 0:02:55]} 10. Ne1 {[%clk 0:02:49]}  h5 {[%clk 0:02:51]} 11. f4 {[%clk 0:02:49]}  Qb6 {[%clk 0:02:49]} 12. dxc5 {[%clk 0:02:23]}  Qxc5+ {[%clk 0:02:45]} 13. Kh1 {[%clk 0:02:22]}  gxf4 {[%clk 0:02:45]} 14. b4 {[%clk 0:02:13]}  Qb6 {[%clk 0:02:45]} 15. Bxf4 {[%clk 0:02:04]}  Ndxe5 {[%clk 0:02:45]} 16. Nf3 {[%clk 0:01:57]}  Ng4 {[%clk 0:02:42]} 17. Ned4 {[%clk 0:01:51]}  e5 {[%clk 0:02:42]} 18. Nxc6 {[%clk 0:01:47]}  exf4 {[%clk 0:02:38]} 19. Nxe7 {[%clk 0:01:45]}  Kxe7 {[%clk 0:02:38]} 20. Nd4 {[%clk 0:01:37]}  Ne3 {[%clk 0:02:34]} 21. Qe2 {[%clk 0:01:31]}  Bg4 {[%clk 0:02:34]} 22. Qf2 {[%clk 0:01:15]}  Qd6 {[%clk 0:02:25]} 23. Rae1 {[%clk 0:01:05]}  Rae8 {[%clk 0:02:24]} 24. Qxf4 {[%clk 0:00:55]}  Qxf4 {[%clk 0:02:24]} 25. Rxf4 {[%clk 0:00:56]}  Kf8 {[%clk 0:02:24]} 26. h3 {[%clk 0:00:53]}  Bd7 {[%clk 0:02:23]} 27. Rf3 {[%clk 0:00:38]}  Ng4 {[%clk 0:02:20]} 28. Rxe8+ {[%clk 0:00:36]}  Kxe8 {[%clk 0:02:20]} 29. Kg1 {[%clk 0:00:35]}  Ne5 {[%clk 0:02:19]} 30. Re3 {[%clk 0:00:35]}  f6 {[%clk 0:02:19]} 31. Nf3 {[%clk 0:00:35]}  Ke7 {[%clk 0:02:15]} 32. Nxe5 {[%clk 0:00:35]}  fxe5 {[%clk 0:02:16]} 33. Rxe5+ {[%clk 0:00:35]}  Kd6 {[%clk 0:02:17]} 34. Rg5 {[%clk 0:00:34]}  h4 {[%clk 0:02:14]} 35. Kf2 {[%clk 0:00:31]}  Rf8+ {[%clk 0:02:12]} 36. Ke3 {[%clk 0:00:32]}  Re8+ {[%clk 0:02:08]} 37. Kd4 {[%clk 0:00:32]}  Re1 {[%clk 0:02:05]} 38. Rxd5+ {[%clk 0:00:31]}  Kc6 {[%clk 0:02:04]} 39. Rh5 {[%clk 0:00:25]}  Rd1 {[%clk 0:02:03]} 40. Ke3 {[%clk 0:00:18]}  Re1+ {[%clk 0:02:02]} 41. Kd2 {[%clk 0:00:18]}  Rg1 {[%clk 0:02:01]} 42. Be4+ {[%clk 0:00:18]}  Kc7 {[%clk 0:02:01]} 43. Rxh4 {[%clk 0:00:19]}  Be6 {[%clk 0:02:01]} 44. a4 {[%clk 0:00:18]}  b5 {[%clk 0:02:01]} 45. axb5 {[%clk 0:00:18]}  axb5 {[%clk 0:02:02]} 46. Bf3 {[%clk 0:00:18]}  Kd6 {[%clk 0:02:02]} 47. Rh6 {[%clk 0:00:18]}  Ke5 {[%clk 0:02:02]} 48. h4 {[%clk 0:00:18]}  Bc4 {[%clk 0:02:01]} 49. h5 {[%clk 0:00:17]}  Kf4 {[%clk 0:02:01]} 50. Rf6+ {[%clk 0:00:16]}  Kg5 {[%clk 0:02:01]} 51. Rb6 {[%clk 0:00:16]}  Rh1 {[%clk 0:01:55]} 52. h6 {[%clk 0:00:16]}  Kf4 {[%clk 0:01:52]} 53. Be2 {[%clk 0:00:15]}  Rh2 {[%clk 0:01:50]} 54. Bxc4 {[%clk 0:00:14]}  bxc4 {[%clk 0:01:51]} 55. Rg6 {[%clk 0:00:13]}  Kf5 {[%clk 0:01:51]} 56. Rc6 {[%clk 0:00:10]}  Rxg2+ {[%clk 0:01:51]} 57. Ke3 {[%clk 0:00:10]}  Rg3+ {[%clk 0:01:35]} 58. Kd4 {[%clk 0:00:11]}  Rg4+ {[%clk 0:01:36]} 59. Kc5 {[%clk 0:00:11]}  Ke5 {[%clk 0:01:33]} 60. b5 {[%clk 0:00:11]}  Rh4 {[%clk 0:01:30]} 61. b6 {[%clk 0:00:11]}  Ke4 {[%clk 0:01:31]} 62. b7 {[%clk 0:00:11]}  Kd3 {[%clk 0:01:31]} 63. b8=Q {[%clk 0:00:11]}  Rh5+ {[%clk 0:01:31]} 64. Kb6 {[%clk 0:00:10]}  Kxc3 {[%clk 0:01:31]} 65. Qg3+ {[%clk 0:00:10]}  Kb4 {[%clk 0:01:32]} 66. Rxc4+ {[%clk 0:00:09]}  Kxc4 {[%clk 0:01:32]} 67. Qg4+ {[%clk 0:00:10]}  Kb3 {[%clk 0:01:32]} 68. Qxh5 {[%clk 0:00:11]}  Ka4 {[%clk 0:01:33]} 69. h7 {[%clk 0:00:11]}  Ka3 {[%clk 0:01:33]} 70. h8=R {[%clk 0:00:11]}  Ka2 {[%clk 0:01:34]} 71. Rc8 {[%clk 0:00:10]}  Kb3 {[%clk 0:01:35]} 72. Qd1+ {[%clk 0:00:10]}  Kb4 {[%clk 0:01:35]} 73. Rc1 {[%clk 0:00:09]}  Ka3 {[%clk 0:01:35]} 74. Rb1 {[%clk 0:00:09]}  Ka2 {[%clk 0:01:35]} 75. Qb3# {[%clk 0:00:09]} 1-0


[Site "https://www.chess.com"]